[Event "Late-Titled-Tuesday-Blitz-July-09-2024"]
[Site "Chess.com"]
[Date "2024.07.09"]
[Round "3"]
[White "PhileKhoob"]
[Black "Love7Unicorn"]
[Result "0-1"]
[WhiteElo "2384"]
[BlackElo "2597"]
[TimeControl "180+1"]
[EndTime "14:26:12 PDT"]
[Termination "Love7Unicorn won on time"]

1. Nf3 {[%clk 0:02:52.9]} 1... Nf6 {[%clk 0:02:56.5]} 2. g3 {[%clk 0:02:51.1]}
2... b5 {[%clk 0:02:56.5]} 3. Bg2 {[%clk 0:02:43.4]} 3... Bb7 {[%clk 0:02:55.6]}
4. Na3 {[%clk 0:02:43.9]} 4... a6 {[%clk 0:02:54.6]} 5. c4 {[%clk 0:02:44.1]}
5... e6 {[%clk 0:02:52]} 6. b3 {[%clk 0:02:41.8]} 6... b4 {[%clk 0:02:46.1]} 7.
Nc2 {[%clk 0:02:39]} 7... c5 {[%clk 0:02:46.4]} 8. O-O {[%clk 0:02:22.3]} 8...
Be7 {[%clk 0:02:46.4]} 9. d4 {[%clk 0:02:12.4]} 9... O-O {[%clk 0:02:39.7]} 10.
d5 {[%clk 0:01:30.5]} 10... exd5 {[%clk 0:02:38.9]} 11. Nh4 {[%clk 0:01:06.2]}
11... Ne4 {[%clk 0:02:30.1]} 12. Bb2 {[%clk 0:00:43.2]} 12... Bxh4 {[%clk
0:02:10.6]} 13. gxh4 {[%clk 0:00:39.2]} 13... d4 {[%clk 0:02:00.8]} 14. Qd3
{[%clk 0:00:15.3]} 14... Qxh4 {[%clk 0:01:57.1]} 15. e3 {[%clk 0:00:08.5]} 15...
Qg5 {[%clk 0:01:48.7]} 16. f4 {[%clk 0:00:01.6]} 16... Qg4 {[%clk 0:01:40.9]}
0-1

[Event "Late-Titled-Tuesday-Blitz-July-09-2024"]
[Site "Chess.com"]
[Date "2024.07.09"]
[Round "3"]
[White "TheAlienParty"]
[Black "maurovargas01"]
[Result "1-0"]
[WhiteElo "2332"]
[BlackElo "1943"]
[TimeControl "180+1"]
[EndTime "14:26:12 PDT"]
[Termination "TheAlienParty won by checkmate"]

1. c4 {[%clk 0:02:50]} 1... e5 {[%clk 0:02:58.9]} 2. Nc3 {[%clk 0:02:49.4]} 2...
Nc6 {[%clk 0:02:59.8]} 3. Nf3 {[%clk 0:02:48.3]} 3... f5 {[%clk 0:02:59.8]} 4.
g3 {[%clk 0:02:47.8]} 4... Nf6 {[%clk 0:02:59.9]} 5. d4 {[%clk 0:02:47.2]} 5...
e4 {[%clk 0:02:58.9]} 6. Nh4 {[%clk 0:02:47.1]} 6... g6 {[%clk 0:02:57.3]} 7.
Bg5 {[%clk 0:02:45.8]} 7... Bb4 {[%clk 0:02:54.7]} 8. Rc1 {[%clk 0:02:34.6]}
8... O-O {[%clk 0:02:53.2]} 9. Ng2 {[%clk 0:02:30]} 9... Kg7 {[%clk 0:02:50.2]}
10. Qd2 {[%clk 0:02:28.4]} 10... Rf7 {[%clk 0:02:43.8]} 11. h4 {[%clk
0:02:26.6]} 11... Qf8 {[%clk 0:02:30.2]} 12. Bh6+ {[%clk 0:02:24.9]} 12... Kg8
{[%clk 0:02:18.9]} 13. Bxf8 {[%clk 0:02:24]} 13... Rxf8 {[%clk 0:02:19.7]} 14.
Nf4 {[%clk 0:02:18.9]} 14... d6 {[%clk 0:02:15]} 15. a3 {[%clk 0:02:17.7]} 15...
Bxc3 {[%clk 0:02:08.3]} 16. Rxc3 {[%clk 0:02:16.2]} 16... Bd7 {[%clk 0:02:07.3]}
17. h5 {[%clk 0:02:13.4]} 17... g5 {[%clk 0:02:05.1]} 18. Nd5 {[%clk 0:02:10.5]}
18... h6 {[%clk 0:02:01.5]} 19. Nxc7 {[%clk 0:02:07.1]} 19... Rac8 {[%clk
0:02:01.2]} 20. Nb5 {[%clk 0:02:06.2]} 20... d5 {[%clk 0:01:51]} 21. Nd6 {[%clk
0:02:01.6]} 21... Rcd8 {[%clk 0:01:46.5]} 22. Nxb7 {[%clk 0:02:00]} 22... Rb8
{[%clk 0:01:44]} 23. Nc5 {[%clk 0:01:57.8]} 23... dxc4 {[%clk 0:01:39.7]} 24. e3
{[%clk 0:01:50.6]} 24... Be8 {[%clk 0:01:36.5]} 25. Bxc4+ {[%clk 0:01:49.1]}
25... Kg7 {[%clk 0:01:35.6]} 26. b4 {[%clk 0:01:47.3]} 26... Nxh5 {[%clk
0:01:33.1]} 27. Ne6+ {[%clk 0:01:46]} 27... Kf7 {[%clk 0:01:26.6]} 28. Nxf8+
{[%clk 0:01:44]} 28... Kxf8 {[%clk 0:01:26.5]} 29. g4 {[%clk 0:01:34.6]} 29...
fxg4 {[%clk 0:01:25.8]} 30. Bd5 {[%clk 0:01:33.5]} 30... Ne7 {[%clk 0:01:21.1]}
31. Bxe4 {[%clk 0:01:32]} 31... g3 {[%clk 0:01:19.9]} 32. fxg3 {[%clk
0:01:29.2]} 32... Nxg3 {[%clk 0:01:19]} 33. Qf2+ {[%clk 0:01:28.1]} 33... Ngf5
{[%clk 0:01:15.9]} 34. Bxf5 {[%clk 0:01:26.9]} 34... Nxf5 {[%clk 0:01:16.8]} 35.
Qxf5+ {[%clk 0:01:26.3]} 35... Kg7 {[%clk 0:01:17.7]} 36. Rc7+ {[%clk
0:01:25.2]} 36... Kg8 {[%clk 0:01:14.4]} 37. Qh7+ {[%clk 0:01:24.1]} 37... Kf8
{[%clk 0:01:12.7]} 38. Qg7# {[%clk 0:01:23.8]} 1-0

[Event "Late-Titled-Tuesday-Blitz-July-09-2024"]
[Site "Chess.com"]
[Date "2024.07.09"]
[Round "3"]
[White "KVAIDAN"]
[Black "TOCANTINS_TO"]
[Result "1-0"]
[WhiteElo "2363"]
[BlackElo "2038"]
[TimeControl "180+1"]
[EndTime "14:26:15 PDT"]
[Termination "KVAIDAN won by resignation"]

1. f4 {[%clk 0:03:00]} 1... g6 {[%clk 0:02:58.3]} 2. Nf3 {[%clk 0:03:00]} 2...
Bg7 {[%clk 0:02:58.9]} 3. d3 {[%clk 0:03:00.1]} 3... d6 {[%clk 0:02:59.6]} 4. e4
{[%clk 0:03:00.4]} 4... Nf6 {[%clk 0:02:58.3]} 5. Be2 {[%clk 0:03:00.3]} 5...
O-O {[%clk 0:02:58.5]} 6. O-O {[%clk 0:03:00.5]} 6... c5 {[%clk 0:02:58.1]} 7.
Nc3 {[%clk 0:03:00.8]} 7... a6 {[%clk 0:02:54.4]} 8. Qe1 {[%clk 0:03:01.7]} 8...
Bg4 {[%clk 0:02:50.8]} 9. Qh4 {[%clk 0:03:00.6]} 9... Bxf3 {[%clk 0:02:50.7]}
10. Rxf3 {[%clk 0:02:55.1]} 10... Nbd7 {[%clk 0:02:31.9]} 11. Rh3 {[%clk
0:02:21.9]} 11... e6 {[%clk 0:02:21.5]} 12. f5 {[%clk 0:02:20]} 12... exf5
{[%clk 0:02:10.1]} 13. Nd5 {[%clk 0:02:19.6]} 13... Re8 {[%clk 0:01:17.9]} 14.
Bg5 {[%clk 0:02:18.7]} 14... Re6 {[%clk 0:01:13.4]} 15. Rf1 {[%clk 0:02:15.9]}
15... Qa5 {[%clk 0:00:26.4]} 16. Nxf6+ {[%clk 0:02:00.8]} 16... Bxf6 {[%clk
0:00:23]} 17. Qxh7+ {[%clk 0:01:56.5]} 17... Kf8 {[%clk 0:00:23.1]} 18. Bxf6
{[%clk 0:01:50.9]} 18... Nxf6 {[%clk 0:00:21.4]} 19. Qh8+ {[%clk 0:01:49.4]}
19... Ng8 {[%clk 0:00:16.6]} 20. exf5 {[%clk 0:01:49]} 20... Rxe2 {[%clk
0:00:16.7]} 21. fxg6 {[%clk 0:01:47.9]} 21... c4 {[%clk 0:00:06.9]} 22. Rxf7+
{[%clk 0:01:46.2]} 1-0

[Event "Late-Titled-Tuesday-Blitz-July-09-2024"]
[Site "Chess.com"]
[Date "2024.07.09"]
[Round "3"]
[White "Burgsvik"]
[Black "AlphaPerseii"]
[Result "1-0"]
[WhiteElo "2268"]
[BlackElo "2392"]
[TimeControl "180+1"]
[EndTime "14:26:16 PDT"]
[Termination "Burgsvik won by resignation"]

1. e4 {[%clk 0:03:00.9]} 1... e6 {[%clk 0:02:58]} 2. d4 {[%clk 0:03:00.1]} 2...
d5 {[%clk 0:02:58.4]} 3. e5 {[%clk 0:03:01]} 3... c5 {[%clk 0:02:58.6]} 4. c3
{[%clk 0:03:01.4]} 4... Nc6 {[%clk 0:02:58.2]} 5. Nf3 {[%clk 0:03:01.9]} 5...
Bd7 {[%clk 0:02:58]} 6. a3 {[%clk 0:03:02.3]} 6... Qb6 {[%clk 0:02:55.4]} 7. b4
{[%clk 0:03:02]} 7... c4 {[%clk 0:02:52.6]} 8. Be3 {[%clk 0:02:58.5]} 8... a5
{[%clk 0:02:47.6]} 9. Nbd2 {[%clk 0:02:57.9]} 9... Nge7 {[%clk 0:02:42.5]} 10.
Be2 {[%clk 0:02:57.1]} 10... Nf5 {[%clk 0:02:28.9]} 11. O-O {[%clk 0:02:50.7]}
11... Be7 {[%clk 0:02:25.4]} 12. Qc2 {[%clk 0:02:47.6]} 12... O-O {[%clk
0:02:18.2]} 13. Rfb1 {[%clk 0:02:46.6]} 13... axb4 {[%clk 0:02:16.5]} 14. axb4
{[%clk 0:02:45.7]} 14... Rxa1 {[%clk 0:01:42.3]} 15. Rxa1 {[%clk 0:02:44.2]}
15... Nxe3 {[%clk 0:01:43]} 16. fxe3 {[%clk 0:02:43.4]} 16... f6 {[%clk
0:01:43.7]} 17. exf6 {[%clk 0:02:35.3]} 17... Bxf6 {[%clk 0:01:42.8]} 18. Nf1
{[%clk 0:02:29.4]} 18... e5 {[%clk 0:01:37.2]} 19. Ng3 {[%clk 0:02:29.3]} 19...
e4 {[%clk 0:01:34.8]} 20. Nd2 {[%clk 0:02:29.1]} 20... Qc7 {[%clk 0:01:28.7]}
21. Qa2 {[%clk 0:02:18.2]} 21... Bg5 {[%clk 0:01:22.9]} 22. Ngf1 {[%clk
0:02:15.7]} 22... Rf6 {[%clk 0:01:00.6]} 23. Bxc4 {[%clk 0:02:08.5]} 23... dxc4
{[%clk 0:00:49.9]} 24. Qxc4+ {[%clk 0:02:08.2]} 24... Be6 {[%clk 0:00:28.7]} 25.
d5 {[%clk 0:02:07.9]} 25... Rh6 {[%clk 0:00:16.7]} 26. Ra8+ {[%clk 0:02:01.5]}
26... Bc8 {[%clk 0:00:12.4]} 27. dxc6+ {[%clk 0:02:00.3]} 27... Kf8 {[%clk
0:00:09.4]} 28. Qxe4 {[%clk 0:01:56.4]} 1-0

[Event "Late-Titled-Tuesday-Blitz-July-09-2024"]
[Site "Chess.com"]
[Date "2024.07.09"]
[Round "3"]
[White "Maluco_do_Natal_00"]
[Black "AlexZambrano"]
[Result "1-0"]
[WhiteElo "2000"]
[BlackElo "2280"]
[TimeControl "180+1"]
[EndTime "14:26:17 PDT"]
[Termination "Maluco_do_Natal_00 won by resignation"]

1. e4 {[%clk 0:02:59.8]} 1... c5 {[%clk 0:02:57.3]} 2. Nf3 {[%clk 0:02:55.1]}
2... d6 {[%clk 0:02:55.6]} 3. d4 {[%clk 0:02:55.3]} 3... cxd4 {[%clk 0:02:56.3]}
4. Nxd4 {[%clk 0:02:55.6]} 4... Nf6 {[%clk 0:02:56.8]} 5. Nc3 {[%clk 0:02:55.9]}
5... g6 {[%clk 0:02:57.1]} 6. Be3 {[%clk 0:02:56.3]} 6... Bg7 {[%clk 0:02:57.5]}
7. f3 {[%clk 0:02:56.5]} 7... O-O {[%clk 0:02:57.9]} 8. Qd2 {[%clk 0:02:56.9]}
8... a6 {[%clk 0:02:58]} 9. Bc4 {[%clk 0:02:57.2]} 9... Qc7 {[%clk 0:02:58.5]}
10. Bb3 {[%clk 0:02:57.1]} 10... Nbd7 {[%clk 0:02:56.3]} 11. Bh6 {[%clk
0:02:57]} 11... Ne5 {[%clk 0:02:49.5]} 12. Bxg7 {[%clk 0:02:56.8]} 12... Kxg7
{[%clk 0:02:50.4]} 13. h4 {[%clk 0:02:56.7]} 13... h5 {[%clk 0:02:47.8]} 14.
O-O-O {[%clk 0:02:45.2]} 14... b5 {[%clk 0:02:25.7]} 15. Qg5 {[%clk 0:02:38]}
15... Nc4 {[%clk 0:01:54.3]} 16. g4 {[%clk 0:02:11.5]} 16... b4 {[%clk
0:01:36.9]} 17. Nd5 {[%clk 0:01:53.4]} 17... Nxd5 {[%clk 0:01:29.1]} 18. exd5
{[%clk 0:01:52.1]} 18... Rh8 {[%clk 0:01:10.5]} 19. Rhg1 {[%clk 0:01:39.1]}
19... f6 {[%clk 0:00:44.3]} 20. Qf4 {[%clk 0:01:32.8]} 20... a5 {[%clk
0:00:35.5]} 21. Bxc4 {[%clk 0:01:22.4]} 1-0

[Event "Late-Titled-Tuesday-Blitz-July-09-2024"]
[Site "Chess.com"]
[Date "2024.07.09"]
[Round "3"]
[White "Oleksandr_Bortnyk"]
[Black "Paladin61"]
[Result "1-0"]
[WhiteElo "3055"]
[BlackElo "2728"]
[TimeControl "180+1"]
[EndTime "14:26:29 PDT"]
[Termination "Oleksandr_Bortnyk won by checkmate"]

1. d4 {[%clk 0:03:00.9]} 1... d5 {[%clk 0:02:52.6]} 2. Nc3 {[%clk 0:02:59.9]}
2... Nf6 {[%clk 0:02:51.6]} 3. Bf4 {[%clk 0:02:59.7]} 3... c5 {[%clk 0:02:49.4]}
4. e4 {[%clk 0:02:59.7]} 4... Nxe4 {[%clk 0:02:48.9]} 5. Nxe4 {[%clk 0:02:59.6]}
5... dxe4 {[%clk 0:02:49.7]} 6. dxc5 {[%clk 0:03:00.5]} 6... Qa5+ {[%clk
0:02:48.1]} 7. c3 {[%clk 0:03:01]} 7... Qxc5 {[%clk 0:02:48.6]} 8. Qa4+ {[%clk
0:03:01.5]} 8... Nc6 {[%clk 0:02:47.6]} 9. Qxe4 {[%clk 0:03:01.6]} 9... g6
{[%clk 0:02:47.8]} 10. Nf3 {[%clk 0:03:02.2]} 10... Bg7 {[%clk 0:02:47.9]} 11.
Rd1 {[%clk 0:03:01.9]} 11... O-O {[%clk 0:02:36.3]} 12. Be3 {[%clk 0:03:02.2]}
12... Qf5 {[%clk 0:02:31.1]} 13. Bd3 {[%clk 0:02:55.5]} 13... Rd8 {[%clk
0:02:07.4]} 14. O-O {[%clk 0:02:48.6]} 14... Qxe4 {[%clk 0:01:59.8]} 15. Bxe4
{[%clk 0:02:49.5]} 15... Be6 {[%clk 0:01:54.1]} 16. a3 {[%clk 0:02:38.4]} 16...
Rdc8 {[%clk 0:01:20.1]} 17. Rfe1 {[%clk 0:02:30.4]} 17... h6 {[%clk 0:01:12.6]}
18. Bf4 {[%clk 0:02:22.6]} 18... g5 {[%clk 0:01:02.3]} 19. Be3 {[%clk
0:02:15.8]} 19... a5 {[%clk 0:00:49.2]} 20. h4 {[%clk 0:02:15.1]} 20... g4
{[%clk 0:00:48.4]} 21. Nd4 {[%clk 0:02:15.7]} 21... Nxd4 {[%clk 0:00:43.3]} 22.
Bxd4 {[%clk 0:02:16.6]} 22... Bxd4 {[%clk 0:00:34.8]} 23. Rxd4 {[%clk
0:02:17.5]} 23... Rc7 {[%clk 0:00:33.5]} 24. Bd3 {[%clk 0:01:56.6]} 24... Kg7
{[%clk 0:00:28]} 25. Re5 {[%clk 0:01:55.6]} 25... Kf6 {[%clk 0:00:22.7]} 26. Rh5
{[%clk 0:01:54.1]} 26... Kg7 {[%clk 0:00:19.7]} 27. Re5 {[%clk 0:01:53.9]} 27...
Kf6 {[%clk 0:00:18.1]} 28. Rb5 {[%clk 0:01:54.5]} 28... Ra6 {[%clk 0:00:06.1]}
29. Rh5 {[%clk 0:01:49.1]} 29... Rb6 {[%clk 0:00:06.2]} 30. Rxh6+ {[%clk
0:01:49.1]} 30... Kg7 {[%clk 0:00:06.4]} 31. Rh7+ {[%clk 0:01:49.4]} 31... Kg8
{[%clk 0:00:06.6]} 32. Rd8# {[%clk 0:01:49.3]} 1-0

[Event "Late-Titled-Tuesday-Blitz-July-09-2024"]
[Site "Chess.com"]
[Date "2024.07.09"]
[Round "3"]
[White "Zq1"]
[Black "luggevoila"]
[Result "1-0"]
[WhiteElo "2579"]
[BlackElo "2346"]
[TimeControl "180+1"]
[EndTime "14:26:36 PDT"]
[Termination "Zq1 won by checkmate"]

1. d4 {[%clk 0:03:00.9]} 1... d5 {[%clk 0:02:59.8]} 2. c4 {[%clk 0:02:59.4]}
2... e6 {[%clk 0:03:00.1]} 3. Nc3 {[%clk 0:02:58.4]} 3... Nf6 {[%clk 0:02:59.9]}
4. cxd5 {[%clk 0:02:57.8]} 4... exd5 {[%clk 0:03:00.8]} 5. Bg5 {[%clk
0:02:56.6]} 5... Be7 {[%clk 0:03:01.4]} 6. e3 {[%clk 0:02:56.7]} 6... O-O {[%clk
0:03:00.9]} 7. Bd3 {[%clk 0:02:55.8]} 7... b6 {[%clk 0:03:00.6]} 8. Nf3 {[%clk
0:02:50.8]} 8... Bb7 {[%clk 0:02:59.8]} 9. Ne5 {[%clk 0:02:50.3]} 9... Nbd7
{[%clk 0:02:54.7]} 10. f4 {[%clk 0:02:49.7]} 10... Ne4 {[%clk 0:02:48.8]} 11.
Bxe7 {[%clk 0:02:45.1]} 11... Qxe7 {[%clk 0:02:47.9]} 12. O-O {[%clk 0:02:34.9]}
12... Nxc3 {[%clk 0:02:39.8]} 13. bxc3 {[%clk 0:02:33.5]} 13... f6 {[%clk
0:02:29.8]} 14. Qh5 {[%clk 0:02:04.2]} 14... g6 {[%clk 0:01:40]} 15. Nxg6 {[%clk
0:01:50.8]} 15... Qxe3+ {[%clk 0:01:01.5]} 16. Kh1 {[%clk 0:01:47.3]} 16... Qxd3
{[%clk 0:01:01.2]} 17. Nxf8 {[%clk 0:01:43.5]} 17... Rxf8 {[%clk 0:00:26.8]} 18.
Qg4+ {[%clk 0:01:42.1]} 18... Qg6 {[%clk 0:00:18.8]} 19. Qxd7 {[%clk 0:01:41.5]}
19... Rf7 {[%clk 0:00:18.6]} 20. Qe8+ {[%clk 0:01:34.2]} 20... Kg7 {[%clk
0:00:18.1]} 21. Rae1 {[%clk 0:01:32.6]} 21... Ba6 {[%clk 0:00:09.2]} 22. Rf3
{[%clk 0:01:31.6]} 22... Qc2 {[%clk 0:00:07]} 23. Rg3+ {[%clk 0:01:27]} 23...
Kh6 {[%clk 0:00:07.2]} 24. Qxf7 {[%clk 0:01:25.1]} 24... Qf2 {[%clk 0:00:07.4]}
25. Qg7+ {[%clk 0:01:23.6]} 25... Kh5 {[%clk 0:00:07]} 26. Qxh7# {[%clk
0:01:23.6]} 1-0

[Event "Late-Titled-Tuesday-Blitz-July-09-2024"]
[Site "Chess.com"]
[Date "2024.07.09"]
[Round "3"]
[White "MKlose11"]
[Black "Jahonas"]
[Result "1-0"]
[WhiteElo "2662"]
[BlackElo "2432"]
[TimeControl "180+1"]
[EndTime "14:26:44 PDT"]
[Termination "MKlose11 won by resignation"]

1. e4 {[%clk 0:03:00.9]} 1... c6 {[%clk 0:02:59.9]} 2. Nc3 {[%clk 0:02:59.5]}
2... d5 {[%clk 0:03:00.2]} 3. g3 {[%clk 0:02:59.5]} 3... e6 {[%clk 0:02:59.3]}
4. Bg2 {[%clk 0:02:59.1]} 4... Nf6 {[%clk 0:02:59.5]} 5. Nge2 {[%clk 0:02:56.9]}
5... dxe4 {[%clk 0:02:59.6]} 6. Nxe4 {[%clk 0:02:55.4]} 6... Nxe4 {[%clk
0:02:59.8]} 7. Bxe4 {[%clk 0:02:55]} 7... Nd7 {[%clk 0:03:00.1]} 8. d4 {[%clk
0:02:54.1]} 8... Bd6 {[%clk 0:02:59.2]} 9. O-O {[%clk 0:02:53.1]} 9... Nf6
{[%clk 0:02:59.4]} 10. Bg2 {[%clk 0:02:52.7]} 10... O-O {[%clk 0:02:58.3]} 11.
c3 {[%clk 0:02:52.9]} 11... Re8 {[%clk 0:02:57.2]} 12. Bf4 {[%clk 0:02:46.4]}
12... h6 {[%clk 0:02:54.4]} 13. Bxd6 {[%clk 0:02:44.1]} 13... Qxd6 {[%clk
0:02:53.6]} 14. Nf4 {[%clk 0:02:44.2]} 14... b6 {[%clk 0:02:51.5]} 15. Nd3
{[%clk 0:02:40.5]} 15... Bb7 {[%clk 0:02:49.5]} 16. Re1 {[%clk 0:02:40.3]} 16...
Rad8 {[%clk 0:02:48.4]} 17. Qa4 {[%clk 0:02:34.1]} 17... a5 {[%clk 0:02:35.3]}
18. Ne5 {[%clk 0:02:29.8]} 18... Nd5 {[%clk 0:02:31.8]} 19. Qb3 {[%clk
0:02:28.1]} 19... Qc7 {[%clk 0:02:26]} 20. a4 {[%clk 0:02:27]} 20... c5 {[%clk
0:02:09.3]} 21. dxc5 {[%clk 0:02:17.2]} 21... Qxc5 {[%clk 0:02:08]} 22. Qb5
{[%clk 0:02:16.9]} 22... Qc7 {[%clk 0:01:54.2]} 23. Rad1 {[%clk 0:02:09.3]}
23... Rf8 {[%clk 0:00:53.7]} 24. c4 {[%clk 0:02:02]} 24... Nb4 {[%clk
0:00:40.9]} 25. Nd7 {[%clk 0:01:47.8]} 25... Bxg2 {[%clk 0:00:30.2]} 26. Kxg2
{[%clk 0:01:46]} 26... Rfe8 {[%clk 0:00:23.5]} 27. Nxb6 {[%clk 0:01:41.5]} 27...
Qb7+ {[%clk 0:00:23]} 28. Kg1 {[%clk 0:01:37.8]} 28... Rxd1 {[%clk 0:00:22.7]}
29. Rxd1 {[%clk 0:01:37.1]} 29... Qf3 {[%clk 0:00:23.4]} 30. Qxe8+ {[%clk
0:01:36.1]} 30... Kh7 {[%clk 0:00:22.9]} 31. Qd7 {[%clk 0:01:32.5]} 31... Nd5
{[%clk 0:00:21.5]} 32. Rxd5 {[%clk 0:01:20.2]} 32... exd5 {[%clk 0:00:20.9]} 33.
Qxd5 {[%clk 0:01:20.4]} 1-0

[Event "Late-Titled-Tuesday-Blitz-July-09-2024"]
[Site "Chess.com"]
[Date "2024.07.09"]
[Round "3"]
[White "MatthewG-p4p"]
[Black "ChessSwole"]
[Result "1-0"]
[WhiteElo "2928"]
[BlackElo "2691"]
[TimeControl "180+1"]
[EndTime "14:26:46 PDT"]
[Termination "MatthewG-p4p won on time"]

1. f4 {[%clk 0:03:00.9]} 1... d5 {[%clk 0:02:57.3]} 2. Nf3 {[%clk 0:03:01.1]}
2... g6 {[%clk 0:02:57.8]} 3. g3 {[%clk 0:03:01.7]} 3... Bg7 {[%clk 0:02:58.4]}
4. Bg2 {[%clk 0:03:02.6]} 4... c6 {[%clk 0:02:59.1]} 5. O-O {[%clk 0:03:03.1]}
5... Qb6+ {[%clk 0:02:59.4]} 6. d4 {[%clk 0:03:03.6]} 6... Nh6 {[%clk 0:03:00]}
7. c4 {[%clk 0:03:03.5]} 7... dxc4 {[%clk 0:02:44.7]} 8. Nc3 {[%clk 0:02:58.8]}
8... Nf5 {[%clk 0:02:40.2]} 9. e3 {[%clk 0:02:58.6]} 9... O-O {[%clk 0:02:26.2]}
10. Qe2 {[%clk 0:02:58.3]} 10... Qa6 {[%clk 0:02:18.6]} 11. Ne5 {[%clk
0:02:57.7]} 11... Nd6 {[%clk 0:02:08.5]} 12. Bd2 {[%clk 0:02:52.4]} 12... Nd7
{[%clk 0:02:06.1]} 13. a4 {[%clk 0:02:50.5]} 13... f6 {[%clk 0:01:31.7]} 14. Nf3
{[%clk 0:02:47.6]} 14... Qb6 {[%clk 0:01:23.6]} 15. a5 {[%clk 0:02:43.9]} 15...
Qxb2 {[%clk 0:01:11.6]} 16. Ra2 {[%clk 0:02:31.2]} 16... Qb3 {[%clk 0:00:51.2]}
17. Rb1 {[%clk 0:02:29.4]} 17... b5 {[%clk 0:00:45.4]} 18. axb6 {[%clk
0:02:26.5]} 18... Nxb6 {[%clk 0:00:38.8]} 19. e4 {[%clk 0:02:13.2]} 19... Be6
{[%clk 0:00:19.9]} 20. Rxb3 {[%clk 0:02:02.5]} 20... cxb3 {[%clk 0:00:20.2]} 21.
Ra1 {[%clk 0:02:03.4]} 21... Bc4 {[%clk 0:00:18.7]} 22. Qf2 {[%clk 0:02:02.3]}
22... a5 {[%clk 0:00:18.6]} 23. e5 {[%clk 0:02:02]} 23... Nb5 {[%clk 0:00:16.3]}
24. Nxb5 {[%clk 0:01:56.5]} 24... cxb5 {[%clk 0:00:13.6]} 25. Bxa5 {[%clk
0:01:53.5]} 25... Na4 {[%clk 0:00:12]} 26. Bb4 {[%clk 0:01:50.4]} 26... Bd3
{[%clk 0:00:10.3]} 27. Re1 {[%clk 0:01:51.1]} 27... b2 {[%clk 0:00:10.5]} 28.
Nd2 {[%clk 0:01:51.3]} 28... Rac8 {[%clk 0:00:08.3]} 29. Bxe7 {[%clk 0:01:50.2]}
29... Rfe8 {[%clk 0:00:08.7]} 30. exf6 {[%clk 0:01:50.4]} 30... Bf8 {[%clk
0:00:04.3]} 31. Bd5+ {[%clk 0:01:50]} 31... Kh8 {[%clk 0:00:04.7]} 32. Bf7
{[%clk 0:01:49.9]} 32... Bxe7 {[%clk 0:00:02.3]} 33. fxe7 {[%clk 0:01:49.3]}
33... Nc3 {[%clk 0:00:01.6]} 34. Bxe8 {[%clk 0:01:49.4]} 34... Rxe8 {[%clk
0:00:02.5]} 35. d5 {[%clk 0:01:50]} 1-0

[Event "Late-Titled-Tuesday-Blitz-July-09-2024"]
[Site "Chess.com"]
[Date "2024.07.09"]
[Round "3"]
[White "SandwichOSaumon"]
[Black "Marcin"]
[Result "0-1"]
[WhiteElo "2299"]
[BlackElo "2634"]
[TimeControl "180+1"]
[EndTime "14:26:49 PDT"]
[Termination "Marcin won by resignation"]

1. e4 {[%clk 0:03:00.9]} 1... e5 {[%clk 0:02:55.8]} 2. Nf3 {[%clk 0:03:00.5]}
2... Nc6 {[%clk 0:02:55.8]} 3. Bb5 {[%clk 0:03:00.9]} 3... a6 {[%clk 0:02:55.1]}
4. Ba4 {[%clk 0:03:01.1]} 4... Nf6 {[%clk 0:02:55.1]} 5. O-O {[%clk 0:02:58.9]}
5... b5 {[%clk 0:02:55.7]} 6. Bb3 {[%clk 0:02:58.5]} 6... Bc5 {[%clk 0:02:56.1]}
7. d3 {[%clk 0:02:54.7]} 7... d6 {[%clk 0:02:53.1]} 8. a4 {[%clk 0:02:54.9]}
8... Rb8 {[%clk 0:02:49.7]} 9. axb5 {[%clk 0:02:53.1]} 9... axb5 {[%clk
0:02:50.6]} 10. Be3 {[%clk 0:02:50.8]} 10... Bxe3 {[%clk 0:02:48.9]} 11. fxe3
{[%clk 0:02:51.7]} 11... O-O {[%clk 0:02:48.1]} 12. Nc3 {[%clk 0:02:51.8]} 12...
Be6 {[%clk 0:02:47.5]} 13. Nd5 {[%clk 0:02:51.9]} 13... Bxd5 {[%clk 0:02:46.2]}
14. exd5 {[%clk 0:02:52.8]} 14... Ne7 {[%clk 0:02:46.2]} 15. e4 {[%clk 0:02:53]}
15... Ng6 {[%clk 0:02:44.5]} 16. Qe1 {[%clk 0:02:48.1]} 16... Nd7 {[%clk
0:02:42]} 17. Qg3 {[%clk 0:02:47.9]} 17... f5 {[%clk 0:02:41.5]} 18. Ng5 {[%clk
0:02:38.8]} 18... f4 {[%clk 0:02:41.3]} 19. Qg4 {[%clk 0:02:39.2]} 19... Nc5
{[%clk 0:02:32.6]} 20. Ne6 {[%clk 0:02:37]} 20... Nxe6 {[%clk 0:02:29]} 21.
Qxe6+ {[%clk 0:02:36.6]} 21... Kh8 {[%clk 0:02:27]} 22. Rf3 {[%clk 0:02:31.9]}
22... Ra8 {[%clk 0:02:13.7]} 23. Raf1 {[%clk 0:02:29.3]} 23... Qf6 {[%clk
0:02:10.6]} 24. Qg4 {[%clk 0:02:24.5]} 24... Qh4 {[%clk 0:02:01.4]} 25. Qd7
{[%clk 0:02:16.1]} 25... Rfc8 {[%clk 0:01:51.8]} 26. Rh3 {[%clk 0:02:12.3]}
26... Qg5 {[%clk 0:01:51.4]} 27. Qxb5 {[%clk 0:02:10.4]} 27... Nh4 {[%clk
0:01:44.3]} 28. g3 {[%clk 0:02:04.2]} 28... fxg3 {[%clk 0:01:42]} 29. Rxg3
{[%clk 0:02:03.9]} 29... Qd2 {[%clk 0:01:39.6]} 30. Qd7 {[%clk 0:01:54.8]} 30...
Ng6 {[%clk 0:01:37.5]} 31. Qh3 {[%clk 0:01:51.4]} 31... Rf8 {[%clk 0:01:33.5]}
32. Qg2 {[%clk 0:00:53.8]} 32... Rxf1+ {[%clk 0:01:30.7]} 33. Qxf1 {[%clk
0:00:53]} 33... Nf4 {[%clk 0:01:28.9]} 34. Rf3 {[%clk 0:00:47.7]} 34... g5
{[%clk 0:01:24.9]} 35. Rf2 {[%clk 0:00:47.8]} 35... Qe3 {[%clk 0:01:24.1]} 36.
Kh1 {[%clk 0:00:43.8]} 36... Ra1 {[%clk 0:01:21.6]} 37. Qxa1 {[%clk 0:00:32.6]}
37... Qxf2 {[%clk 0:01:20.9]} 38. Qg1 {[%clk 0:00:33.2]} 38... Qf3+ {[%clk
0:01:21]} 0-1